[Event "Marmaris Icmeler-IM May 2022"]
[Site "Icmeler"]
[Date "2022.05.05"]
[Round "1.1"]
[White "Hereklioglu, Sude"]
[Black "Huseyinoglu, Alihan"]
[Result "0-1"]
[ECO "A37"]
[WhiteElo "1918"]
[BlackElo "2278"]
[Annotator "TA"]
[PlyCount "102"]
[EventDate "2022.05.05"]
[EventType "schev"]
[EventCountry "TUR"]
[SourceTitle "playchess.com"]
[Source "ChessBase"]
[SourceQuality "1"]
[TimeControl "5400+30"]

{[%evp 15,101,25,20,8,21,0,0,0,-1,0,3,0,0,0,10,-161,-133,-164,-106,-144,-110,-195,-185,-255,-267,-258,-274,-238,-219,-264,-255,-241,-274,-266,-168,-177,-137,-134,0,-180,-173,-177,-179,-220,-218,-221,-224,-314,-287,-368,-366,-365,-364,-498,-469,-506,-503,-641,-610,-736,-715,-739,-708,-882,-837,-995,-966,-1359,-1339,-1377,-1235,-12834,-5718,-29984,-29984,-29985,-29984,-29983,-29984,-29982,-12838,-29990,-29991,-29991,-29992,-29992,-29993,-29999]} 1. Nf3 {[%emt 0:01:00]} c5 {[%emt 0:02:00]} 2. g3 {[%emt 0:00:00]} Nc6 {[%emt 0:00:30]} 3. Bg2 {[%emt 0:00:00]} g6 {[%emt 0:00:30]} 4. O-O {[%emt 0:01:30]} Bg7 {[%emt 0:00:30]} 5. c4 {[%emt 0:00:30]} d6 {[%emt 0:00:30]} 6. Nc3 {[%emt 0:03:30]} e6 {[%emt 0:05:30]} 7. e3 {[%emt 0:05:30] 7.e3 is better than 7.d3.} Nge7 {[%emt 0:03:30]} 8. d4 {[%emt 0:00:30]} O-O {[%emt 0:03:30]} 9. d5 {[%emt 0:06:30] A37: Symmetrical English vs ...g6: 4 Bg2 Bg7 5 Nf3.} Na5 {[%emt 0:04:30]} 10. Qd3 {[%emt 0:04:30]} a6 {[%emt 0:07:30][%cal Ob7b5] [#]} 11. Rd1 $146 {[%emt 0:10:30] The position is equal.} ({Predecessor:} 11. Rb1 b5 12. b3 Rb8 13. Bd2 b4 14. Ne2 exd5 15. cxd5 Bd7 16. Rfe1 Bb5 17. Qe4 {½-½ (57) Abramovic,B (2431)-Damljanovic,B (2565) Paracin 2015}) 11... exd5 {[%emt 0:03:30]} 12. cxd5 {[%emt 0:01:30]} b5 {[%emt 0:02:30]} 13. e4 {[%emt 0:09:30]} b4 {[%emt 0:06:30]} 14. Ne2 {[%emt 0:01:30]} Bd7 {[%emt 0:02:30][%cal Bc8d7,Bd7e6,Be6d5][%mdl 32]} 15. e5 $2 {[%emt 0:04:30]} (15. Rb1 $11) 15... dxe5 {[%emt 0:03:30]} ({Much worse is} 15... Bxe5 $6 16. Nxe5 Bb5 17. Qc2 $1 dxe5 18. g4 $14) 16. d6 {[%emt 0:12:30]} Nec6 {[%emt 0:03:30]} (16... Nf5 $19 {aiming for ...Bb5.} 17. Bg5 Qb6) 17. Qd5 {[%emt 0:01:30]} Rc8 {[%emt 0:09:30]} 18. Be3 {[%emt 0:08:30] [#]} (18. Bg5 $17 Qb6 19. Rac1) 18... Be6 $1 $36 {[%emt 0:06:30][%mdl 2048] Black is on the roll.} 19. Qe4 {[%emt 0:05:30]} (19. Qxc5 $142 Nd4 20. Bxd4 Rxc5 21. Bxc5) 19... Nd4 {[%emt 0:02:30]} 20. Nexd4 {[%emt 0:03:03]} cxd4 {[%emt 0:02:30]} ({Inferior is} 20... exd4 21. Bf4 $19) 21. Bd2 {[%emt 0:00:08]} Qxd6 {[%emt 0:04:30]} 22. Qe1 {[%emt 0:02:20]} Nc6 {[%emt 0:01:30]} 23. Ng5 {[%emt 0:00:26][%cal Bf3g5,Bg5e4,Be4c5][%mdl 32]} Bd5 {[%emt 0:08:09]} 24. Ne4 {[%emt 0:00:50]} Qd7 {[%emt 0:02:29]} 25. Nc5 {[%emt 0:05:04]} Qd8 {[%emt 0:00:10]} 26. Nb7 {[%emt 0:04:22]} Qd7 {[%emt 0:00:06]} (26... Qc7 $17 {Strongly threatening ...Bxg2.} 27. Bxd5 Qxb7) 27. Nc5 $1 {[%emt 0:00:12] Black continues to play with concentration.} Qa7 {[%emt 0:00:36]} 28. Bxd5 {[%emt 0:01:18] And now Nd3 would win.} Qxc5 {[%emt 0:00:05]} 29. Bg2 {[%emt 0:01:39]} f5 {[%emt 0:05:33]} 30. Rdc1 {[%emt 0:01:07]} Qb5 {[%emt 0:01:08]} 31. a4 {[%emt 0:02:29]} (31. Rxc6 $142 Rxc6 32. Bxc6 Qxc6 33. Rc1) 31... bxa3 {[%emt 0:00:11]} 32. bxa3 {[%emt 0:00:09] Threatens to win with Rab1.} e4 {[%emt 0:00:27]} 33. Rab1 {[%emt 0:00:12]} Qd5 {[%emt 0:02:47]} 34. Bb4 {[%emt 0:01:58]} Nxb4 {[%emt 0:01:29]} 35. Qxb4 {[%emt 0:01:06]} d3 {[%emt 0:00:15]} 36. Rd1 {[%emt 0:00:54]} Bd4 {[%emt 0:01:47]} 37. Qe7 {[%emt 0:01:17]} Rf7 {[%emt 0:01:34]} 38. Qg5 {[%emt 0:00:20]} Kg7 {[%emt 0:00:19]} 39. h4 {[%emt 0:00:25]} h5 {[%emt 0:00:34]} 40. Rb4 {[%emt 0:01:10]} Rc2 {[%emt 0:00:58]} 41. Rb8 {[%emt 0:00:52]} Rxf2 {[%emt 0:01:00] ( -> ...Qa2)} 42. Kh1 {[%emt 0:00:18] [#]} Rxg2 $1 {[%emt 0:01:47]} 43. Kxg2 {[%emt 0:00:03]} (43. Qd8 Qxd8) 43... e3+ {[%emt 0:00:04]} 44. Kh2 {[%emt 0:00:04]} e2 {[%emt 0:00:25]} 45. Rc1 {[%emt 0:00:15]} Bf6 {[%emt 0:01:52]} 46. Qd2 {[%emt 0:01:46]} f4 {[%emt 0:00:07]} 47. gxf4 {[%emt 0:00:32] [#]} Qf3 {[%emt 0:00:23]} (47... Be5 $142 $1 {[%mdl 512]} 48. Rb4 Bd6 49. Qb2+ Kh7 50. Rc8 Rg7 51. Re8 d2 52. Rxe2 d1=Q 53. Rg2 Bxb4 54. axb4 Rf7 55. Qf2 Qe4 56. Qg3 Rxf4 57. Qxg6+ Qxg6 58. Rxg6 Kxg6 59. Kg3 Qf3+ 60. Kh2 Rxh4+ 61. Kg1 Rh1#) 48. Rcc8 {[%emt 0:00:35]} Qf2+ {[%emt 0:00:12] Black mates.} 49. Kh3 {[%emt 0:00:06]} e1=Q {[%emt 0:01:13][%cal Re1h1]} 50. Rg8+ {[%emt 0:00:06]} Kh7 {[%emt 0:00:03][%csl Ge1][%cal Rf2g3]} 51. f5 {[%emt 0:01:21]} Qg3# {[%emt 0:00:09] Weighted Error Value: White=0.45/Black=0.14 (very precise)} 0-1

[Event "Marmaris Icmeler-IM May 2022"]
[Site "Icmeler"]
[Date "2022.05.05"]
[Round "1.2"]
[White "Ince, Taylan Ruzgar"]
[Black "Darban, Morteza"]
[Result "1/2-1/2"]
[ECO "B28"]
[WhiteElo "2018"]
[BlackElo "2279"]
[Annotator "TA"]
[PlyCount "61"]
[EventDate "2022.05.05"]
[EventType "schev"]
[EventCountry "TUR"]
[SourceTitle "playchess.com"]
[Source "ChessBase"]
[SourceQuality "1"]
[TimeControl "5400+30"]

{[%evp 9,61,56,56,50,89,76,89,87,77,75,91,83,89,79,85,40,118,90,97,47,86,64,47,7,10,9,34,24,31,0,0,0,0,0,0,0,0,0,0,0,0,0,12,12,78,78,78,78,81,81,81,78,104,81]} 1. e4 {[%emt 0:01:00]} c5 {[%emt 0:04:00]} 2. Nf3 {[%emt 0:00:00]} a6 {[%emt 0:00:00]} 3. c4 {[%emt 0:00:00]} d6 {[%emt 0:00:00]} 4. d4 {[%emt 0:00:30]} Bg4 {[%emt 0:00:30]} 5. dxc5 {[%emt 0:00:30]} Bxf3 {[%emt 0:00:30]} 6. gxf3 {[%emt 0:08:30] B28: Sicilian: 2 Nf3 a6 (O'Kelly Variation).} dxc5 {[%emt 0:02:30]} 7. Qxd8+ {[%emt 0:00:30]} Kxd8 {[%emt 0:00:00]} 8. Be3 {[%emt 0:00:00]} e6 {[%emt 0:06:00]} 9. Nc3 {[%emt 0:02:00]} Nd7 {[%emt 0:22:30]} 10. O-O-O {[%emt 0:14:30] Black must now prevent Na4.} Kc7 {[%emt 0:00:30]} 11. f4 {[%emt 0:00:30] 0x0.00220501f000dp-1022s more active pieces.} (11. Bf4+ {is interesting.} Kc6 12. Be2 g6 13. Kc2) 11... Rd8 {[%emt 0:02:30] [#]} 12. Bg2 $146 {[%emt 0:15:30]} ({Predecessor:} 12. f5 exf5 13. Nd5+ Kb8 14. Bf4+ Ka7 15. Bh3 g6 16. Kc2 Bh6 17. Bd6 Bf8 18. Bf4 {1-0 (45) Caire,F (2445)-V Gallardo,M (1872) FICGS email 2014}) 12... Be7 {[%emt 0:14:30]} (12... g6 $14) 13. Rhg1 {[%emt 0:05:30]} g6 {[%emt 0:02:30]} 14. Rd2 {[%emt 0:07:30]} (14. f5 $16) 14... b6 {[%emt 0:12:30]} 15. Rgd1 {[%emt 0:05:30][%cal Of4f5] Hoping for f5!} f5 {[%emt 0:03:30]} 16. Bf3 {[%emt 0:12:30]} Nh6 {[%emt 0:01:30]} 17. e5 {[%emt 0:04:33]} Nf7 {[%emt 0:00:30]} 18. Kc2 {[%emt 0:05:22][%cal Of3d5]} Nb8 {[%emt 0:07:19]} 19. a3 {[%emt 0:02:55][%cal Of3d5]} (19. Bd5 $5 exd5 20. Nxd5+ Kd7 21. e6+ (21. Nxb6+ Ke6 $11) 21... Kxe6 22. Re2 $14) 19... Rxd2+ {[%emt 0:01:03]} 20. Rxd2 {[%emt 0:00:03]} Rd8 {[%emt 0:00:11]} 21. Rxd8 {[%emt 0:02:14]} Nxd8 {[%emt 0:00:10]} 22. Na4 {[%emt 0:00:29]} Nd7 {[%emt 0:01:49]} 23. b3 {[%emt 0:01:30]} h6 {[%emt 0:03:49]} 24. Nb2 {[%emt 0:00:37]} g5 {[%emt 0:02:18]} 25. Nd3 {[%emt 0:00:19]} Nc6 {[%emt 0:06:53]} 26. Bh5 {[%emt 0:00:13]} gxf4 {[%emt 0:04:49]} (26... Ndb8 $11 {keeps the balance.}) 27. Nxf4 $16 {[%emt 0:01:36] White is better.} Nf8 {[%emt 0:01:01] [#]} 28. Nd3 $1 {[%emt 0:00:19]} Bg5 {[%emt 0:00:14]} 29. f4 {[%emt 0:00:10]} Be7 {[%emt 0:00:29]} 30. Kc3 {[%emt 0:00:11]} a5 {[%emt 0:00:42]} 31. Kc2 {[%emt 0:03:07] Weighted Error Value: White=0.10 (very precise) /Black=0.14 (very precise)} 1/2-1/2

[Event "Marmaris Icmeler-IM May 2022"]
[Site "Icmeler"]
[Date "2022.05.05"]
[Round "1.3"]
[White "Taspinar, Yanki"]
[Black "Odeev, Handszar"]
[Result "1-0"]
[ECO "D90"]
[WhiteElo "2176"]
[BlackElo "2305"]
[Annotator "TA"]
[PlyCount "86"]
[EventDate "2022.05.05"]
[EventType "schev"]
[EventCountry "TUR"]
[SourceTitle "playchess.com"]
[Source "ChessBase"]
[SourceQuality "1"]
[TimeControl "5400+30"]

{[%evp 9,86,0,0,-6,0,0,0,0,103,0,-7,0,53,47,56,56,56,56,52,50,68,53,50,47,52,41,105,65,97,98,93,83,111,84,81,79,103,106,106,94,111,105,111,88,88,86,87,66,71,65,65,65,74,74,71,65,65,65,65,65,81,65,65,65,119,119,177,160,147,59,59,58,80,0,426,396,392,375,362]} 1. d4 {[%emt 0:01:00]} Nf6 {[%emt 0:01:00]} 2. c4 {[%emt 0:00:30]} g6 {[%emt 0:03:30]} 3. Nc3 {[%emt 0:00:30]} d5 {[%emt 0:00:30]} 4. Nf3 {[%emt 0:00:30]} Bg7 {[%emt 0:00:30]} 5. h4 {[%emt 0:00:30]} dxc4 {[%emt 0:06:30]} 6. e4 {[%emt 0:00:30] D90: Grünfeld: 4 Nf3 Bg7 sidelines.} O-O {[%emt 0:22:30][%cal Oc7c5]} 7. Bxc4 {[%emt 0:05:30]} c5 {[%emt 0:20:30]} 8. d5 {[%emt 0:06:30] The position is equal.} e6 {[%emt 0:06:30]} (8... b5 $11 9. Bxb5 Nxe4 10. Nxe4 Qa5+ 11. Nc3 Bxc3+ 12. bxc3 Qxb5) 9. d6 {[%emt 0:11:30] White is more active.} (9. Bg5 $16 {Strongly threatening e5.} h6 10. e5 $1 hxg5 11. exf6 Bxf6 12. dxe6 (12. Nxg5 exd5 13. Qxd5 Nc6 $11) (12. hxg5 Bxc3+ 13. bxc3 exd5 $14) 12... Bxe6 13. Bxe6) 9... Nc6 $11 {[%emt 0:01:30] [#]} 10. Bf4 $146 {[%emt 0:01:30][%cal Bc1f4,Bf4e5,Be5g7][%mdl 32]} ({Predecessor:} 10. Be3 Qa5 11. Qd2 a6 12. h5 b5 13. hxg6 bxc4 14. Bh6 fxg6 15. Bxg7 Kxg7 16. Qh6+ {1-0 (28) Hebbering,T (2177)-Kuhn,G (2017) Bad Homburg 2017}) 10... e5 {[%emt 0:06:30]} (10... a6 $11) 11. Nxe5 $14 {[%emt 0:12:30]} Nxe5 {[%emt 0:06:30]} 12. Bxe5 {[%emt 0:01:30] Hoping for f4.} Nxe4 $1 {[%emt 0:10:29]} 13. Bxg7 {[%emt 0:00:30]} (13. Nxe4 Bxe5 14. h5 Bf5 15. hxg6 hxg6 $17) 13... Re8 {[%emt 0:00:06] [#] ...Nxc3+ is the strong threat.} 14. O-O $1 {[%emt 0:05:30]} Nxd6 {[%emt 0:00:05] [#]} 15. Bxf7+ $1 {[%emt 0:14:30]} Nxf7 {[%emt 0:00:48]} 16. Qxd8 {[%emt 0:00:30]} Rxd8 {[%emt 0:06:26]} 17. Bf6 {[%emt 0:00:00]} Rd3 {[%emt 0:01:55]} ({Black should try} 17... Rd6 $1 $14 18. Be7 Rc6) 18. Ne4 {[%emt 0:02:00]} Bf5 {[%emt 0:02:57]} 19. Nxc5 {[%emt 0:00:30]} Rd5 {[%emt 0:00:09]} 20. Nb3 {[%emt 0:01:30]} ({Inferior is} 20. Nxb7 Rb5 21. Rfe1 (21. g4 $2 Bxg4 22. Rfc1 Rxb7 $19) 21... Rxb7 $17) 20... Rc8 {[%emt 0:00:58]} 21. Rac1 {[%emt 0:00:30]} Nd6 {[%emt 0:00:34]} 22. Rxc8+ {[%emt 0:00:30]} Nxc8 {[%emt 0:00:26]} 23. Rc1 {[%emt 0:00:00]} Nd6 {[%emt 0:00:19]} 24. f3 {[%emt 0:01:00]} b6 {[%emt 0:00:45]} 25. Kf2 {[%emt 0:01:30]} Bd7 {[%emt 0:00:16]} 26. Re1 {[%emt 0:02:30]} Nf5 {[%emt 0:00:46]} 27. g4 {[%emt 0:01:30]} Kf7 {[%emt 0:00:19]} 28. Bg5 {[%emt 0:01:30]} h6 {[%emt 0:00:40]} 29. gxf5 {[%emt 0:06:30]} hxg5 {[%emt 0:00:07]} 30. fxg6+ {[%emt 0:00:30]} Kxg6 $16 {[%emt 0:00:48][%mdl 4096] Endgame KRB-KRN} 31. Rg1 {[%emt 0:00:30]} Kf6 {[%emt 0:00:36]} 32. hxg5+ {[%emt 0:00:30]} Rxg5 {[%emt 0:00:26]} 33. Rxg5 {[%emt 0:00:30]} Kxg5 {[%emt 0:00:03] KB-KN} 34. Ke3 {[%emt 0:00:30] And now Nd4 would win.} Be6 {[%emt 0:00:33]} 35. f4+ {[%emt 0:00:00]} Kf6 {[%emt 0:00:05]} 36. Nc1 {[%emt 0:00:00]} Bc4 {[%emt 0:01:14] [#]} ({Black should play} 36... Bf7 $1 $14) 37. b3 $1 {[%emt 0:00:30]} Bf7 {[%emt 0:00:26]} 38. Ne2 {[%emt 0:00:30]} Ke6 {[%emt 0:00:40]} 39. Nc3 {[%emt 0:00:30]} (39. Ke4 $16) 39... Be8 $1 $14 {[%emt 0:00:16]} 40. Ne4 {[%emt 0:01:30]} Bc6 {[%emt 0:00:38]} 41. Nc3 {[%emt 0:02:30]} (41. Kd4 $16) 41... Kf5 $2 {[%emt 0:00:36][%mdl 8192]} (41... Be8 $1 $11) 42. Ne2 $18 {[%emt 0:00:30] White threatens Nd4+ and mate.} Kf6 {[%emt 0:00:24]} 43. Nd4 {[%emt 0:00:00]} Bd5 {[%emt 0:01:10] Weighted Error Value: White=0.12 (very precise) /Black=0.27 (precise)} 1-0

[Event "Marmaris Icmeler-IM May 2022"]
[Site "Icmeler"]
[Date "2022.05.05"]
[Round "1.4"]
[White "Kilic, Eray"]
[Black "Sevdimaliyev, Urfan"]
[Result "1-0"]
[ECO "C10"]
[WhiteElo "2192"]
[BlackElo "2331"]
[Annotator "TA"]
[PlyCount "91"]
[EventDate "2022.05.05"]
[EventType "schev"]
[EventCountry "TUR"]
[SourceTitle "playchess.com"]
[Source "ChessBase"]
[SourceQuality "1"]
[TimeControl "5400+30"]

{[%evp 12,91,31,13,29,0,59,29,48,0,0,0,0,-4,-20,-23,0,8,3,8,16,0,0,0,0,0,0,0,0,0,0,0,0,0,22,-9,0,-7,0,0,77,86,85,85,95,53,45,0,174,166,166,152,160,163,142,147,136,136,657,646,620,574,545,524,1616,1602,1540,1562,1546,1513,29975,29973,29982,29983,29983,29984,29985,29986,29986,29987,29985,5306]} 1. e4 {[%emt 0:01:00]} e6 {[%emt 0:01:00]} 2. d4 {[%emt 0:00:00]} d5 {[%emt 0:00:00]} 3. Nc3 {[%emt 0:00:00]} dxe4 {[%emt 0:00:00]} 4. Nxe4 {[%emt 0:00:00]} Nd7 {[%emt 0:00:30]} 5. Nf3 {[%emt 0:00:00]} Ngf6 {[%emt 0:00:00]} 6. Nxf6+ {[%emt 0:00:00]} Nxf6 {[%emt 0:00:00]} 7. Be3 {[%emt 0:00:00] 7.c3 gains popularity.} Nd5 {[%emt 0:00:30] C10: French with 3 Nc3: Unusual Black 3rd moves and 3...dxe4.} 8. Bd3 {[%emt 0:00:30]} Bd6 {[%emt 0:00:00]} (8... Nxe3 $11 9. fxe3 Bd6) 9. Qe2 {[%emt 0:01:30]} Qe7 {[%emt 0:06:00] [#] White has an edge.} 10. c4 $146 {[%emt 0:10:30]} (10. Bg5 $14 f6 11. Bd2) ({Predecessor:} 10. O-O-O Bd7 11. Bg5 f6 12. Bd2 O-O-O 13. Rhe1 Qf7 14. g3 Bb4 15. c3 Ba5 16. Bc4 {½-½ (59) Estrada Nieto,J (2253)-Romanchuk,V (2266) Chess.com INT 2021}) 10... Nxe3 $11 {[%emt 0:01:30]} 11. fxe3 {[%emt 0:00:30] [#] Hoping for c5.} c6 {[%emt 0:04:30]} 12. O-O-O {[%emt 0:04:30]} e5 {[%emt 0:08:30]} 13. Qc2 {[%emt 0:00:30]} h6 {[%emt 0:05:30]} 14. Kb1 {[%emt 0:15:30]} O-O {[%emt 0:04:30]} 15. Rhf1 {[%emt 0:01:30]} Bg4 {[%emt 0:12:30]} 16. Bf5 {[%emt 0:04:30]} Bxf5 {[%emt 0:12:30]} 17. Qxf5 {[%emt 0:00:30][%cal Rd4e5]} exd4 {[%emt 0:02:30]} 18. exd4 {[%emt 0:01:30]} Rae8 {[%emt 0:09:30]} 19. c5 {[%emt 0:02:30] Threatens to win with Rfe1.} Bc7 {[%emt 0:01:30]} 20. Rde1 {[%emt 0:01:30]} Qd8 {[%emt 0:00:30]} 21. Rxe8 {[%emt 0:00:30]} Qxe8 {[%emt 0:02:30]} 22. Re1 {[%emt 0:06:30] Prevents Qe2.} Qc8 {[%emt 0:04:30]} 23. Qe4 {[%emt 0:03:30]} Rd8 {[%emt 0:00:30]} 24. a3 {[%emt 0:04:30]} Qd7 {[%emt 0:01:30]} 25. Qe7 {[%emt 0:00:30]} b6 {[%emt 0:04:06]} (25... Qc8 $11 {keeps the balance.}) 26. Qxd7 $16 {[%emt 0:05:30] White is more active.} Rxd7 {[%emt 0:00:46][%mdl 4096] Endgame KRB-KRN} 27. Re8+ {[%emt 0:00:30]} Kh7 {[%emt 0:00:00]} 28. Ra8 {[%emt 0:01:30]} Bf4 $1 {[%emt 0:02:34]} 29. b4 {[%emt 0:05:30][%cal Bb2b4,Bb4b5][%mdl 32] b5! is the strong threat.} Be3 $2 {[%emt 0:00:55]} (29... g5 $1 $11) 30. b5 $1 $18 {[%emt 0:00:30]} Rc7 {[%emt 0:03:24]} 31. d5 {[%emt 0:09:30]} cxd5 {[%emt 0:03:15]} 32. c6 {[%emt 0:00:30]} Kg6 {[%emt 0:03:20]} 33. Ne5+ {[%emt 0:01:38]} Kf5 {[%emt 0:00:31]} 34. Nd3 {[%emt 0:00:28] Strongly threatening Nb4.} Bc5 {[%emt 0:04:49][%mdl 8192] Loses the game.} (34... Ke6 $16) 35. Nxc5 {[%emt 0:00:24]} bxc5 {[%emt 0:00:33] KR-KR} 36. Kc2 {[%emt 0:00:30]} Ke5 {[%emt 0:00:13] [#]} 37. Rxa7 $3 {[%emt 0:00:41][%mdl 512]} Kd6 {[%emt 0:01:42]} (37... Rxa7 38. b6) 38. Ra8 {[%emt 0:02:05] And now b6 would win.} Re7 {[%emt 0:00:29]} 39. Rd8+ {[%emt 0:04:08]} Kc7 {[%emt 0:00:02]} 40. Rxd5 {[%emt 0:00:01]} Kb6 {[%emt 0:00:07]} 41. Rd7 {[%emt 0:00:45] White mates.} Rxd7 {[%emt 0:01:14]} 42. cxd7 {[%emt 0:00:01]} Kc7 {[%emt 0:00:04]} 43. a4 {[%emt 0:00:11][%cal Ba3a4,Ba4a5][%mdl 32]} f5 {[%emt 0:00:50]} 44. a5 {[%emt 0:00:18]} Kxd7 {[%emt 0:00:06]} 45. Kd3 {[%emt 0:00:51]} f4 {[%emt 0:00:18]} 46. Ke4 {[%emt 0:00:33] Weighted Error Value: White=0.08 (flawless) /Black=0.49} (46. Kc4 $142 Kc7 47. Kxc5 g5 48. a6 Kd8 49. b6 Ke7 50. b7 h5 51. a7) 1-0

[Event "Marmaris Icmeler-IM May 2022"]
[Site "Icmeler"]
[Date "2022.05.05"]
[Round "1.5"]
[White "Nazari, Arad"]
[Black "Toufighi, Homayoon"]
[Result "1/2-1/2"]
[ECO "B56"]
[WhiteElo "2287"]
[BlackElo "2439"]
[Annotator "TA"]
[PlyCount "22"]
[EventDate "2022.05.05"]
[EventType "schev"]
[EventCountry "TUR"]
[SourceTitle "playchess.com"]
[Source "ChessBase"]
[SourceQuality "1"]
[TimeControl "5400+30"]

{[%evp 21,22,-27,33]} 1. e4 {[%emt 0:05:00]} c5 {[%emt 0:01:00]} 2. Nf3 {[%emt 0:00:30]} d6 {[%emt 0:00:30]} 3. d4 {[%emt 0:00:30]} cxd4 {[%emt 0:00:30]} 4. Nxd4 {[%emt 0:00:30]} Nf6 {[%emt 0:00:30]} 5. Nc3 {[%emt 0:00:30]} Nc6 {[%emt 0:00:30] [#]} 6. Be3 $146 {[%emt 0:00:30]} ({Predecessor:} 6. Bg5 e6 7. Bb5 Bd7 8. Qd3 Nxd4 9. Bxd7+ Qxd7 10. Qxd4 Be7 11. O-O-O Rc8 12. Qxa7 Qc6 13. Rd2 h6 14. Bh4 g5 15. Bg3 Nxe4 16. Nxe4 Qxe4 17. f3 Qc6 18. Qd4 {½-½ (49) Fedoseev,V (2701)-Oparin,G (2674) Chess.com INT 2022}) 6... Ng4 {[%emt 0:00:30]} 7. Bc1 {[%emt 0:00:30]} Nf6 {[%emt 0:00:30]} 8. Be3 {[%emt 0:00:30]} Ng4 {[%emt 0:00:30]} 9. Bc1 {[%emt 0:00:30]} Nf6 {[%emt 0:00:30]} 10. Be3 {[%emt 0:00:30] 10.Nxc6 is a critical line.} Ng4 {[%emt 0:00:30]} 11. Bc1 {[%emt 0:00:30]} Nf6 (11... Qb6 $11 12. Bb5 Bd7) 1/2-1/2

[Event "Marmaris Icmeler-IM May 2022"]
[Site "Icmeler"]
[Date "2022.05.05"]
[Round "2.1"]
[White "Darban, Morteza"]
[Black "Hereklioglu, Sude"]
[Result "1-0"]
[ECO "B28"]
[WhiteElo "2279"]
[BlackElo "1918"]
[Annotator "TA"]
[PlyCount "95"]
[EventDate "2022.05.05"]
[EventType "schev"]
[EventCountry "TUR"]
[SourceTitle "playchess.com"]
[Source "ChessBase"]
[SourceQuality "1"]
[TimeControl "5400+30"]

{[%evp 9,95,34,63,60,37,37,60,29,50,0,12,-10,-10,-21,-29,-16,-23,-22,0,0,0,0,0,16,13,10,23,0,28,28,22,0,0,0,0,0,14,8,16,0,0,0,0,0,0,0,0,0,120,134,84,89,78,120,110,0,122,62,66,0,125,110,117,98,185,192,285,297,1781,1862,1532,3648,2039,1875,29958,29958,29960,29960,29954,29954,29947,12809,29984,29985,29984,29985,29989,29990]} 1. e4 c5 2. Nf3 a6 3. c3 d5 4. exd5 Qxd5 5. d4 cxd4 6. cxd4 {B28: Sicilian: 2 Nf3 a6 (O'Kelly Variation).} ({Much weaker is} 6. Qxd4 Qxd4 7. cxd4 Nc6 $11) 6... Nf6 7. Nc3 Qd6 {The main line 7...Qd6 scores better than 7...Qd8.} 8. a3 {White is slightly better.} g6 {[#]} 9. Be3 $146 ({Predecessor:} 9. Bc4 Bg7 10. O-O O-O 11. Ne5 Nbd7 12. Bf4 Nh5 13. Nxf7 Qxf4 14. Nd5 Qxf7 15. Nxe7+ {1-0 (51) Dijkhuis,O (2119)-Joppien,A (1940) Lueneburg 2019}) 9... Bg7 10. Ne5 O-O 11. Be2 Be6 12. O-O Rd8 13. Bf3 Nc6 14. Nxc6 bxc6 15. Rc1 h5 16. h3 Bd5 17. Nxd5 cxd5 18. Qa4 Ne4 19. Rc6 Qd7 20. Rfc1 a5 21. Qc2 Qf5 22. Qd1 {Hoping for g4.} Ng5 23. Be2 e5 24. h4 Ne6 {[%cal Re6d4]} 25. g4 $36 {[%mdl 2048] White has some pressure.} hxg4 26. Bxg4 Qe4 {[%cal Re5d4]} 27. Bxe6 fxe6 28. Rxe6 {h5 is the strong threat.} Kf7 (28... Re8 $11 29. Rxe8+ Rxe8 30. dxe5 Bxe5) 29. Rcc6 $16 Rac8 (29... Rdc8 $142) 30. Rxg6 {White is more active.} Rxc6 31. Rxc6 {aiming for Qh5+. Chess con chili.} exd4 32. Bg5 ({White should try} 32. Qh5+ $1 $16 Kg8 33. Rc7 $1) 32... Re8 {[#]} (32... Rf8 $1 $11) 33. Rc7+ (33. Qh5+ $1 $16 Kg8 34. Bf6 (34. Rc7 Qe1+ 35. Kg2 Qe4+ 36. Qf3 Rb8 $16) 34... Bxf6 35. Rxf6) 33... Kg8 $14 34. Rc2 (34. Qh5 $14 Qe1+ 35. Kg2 Qe4+ 36. Qf3 (36. f3 Qe2+ 37. Kg3 Qe1+ 38. Kh3 Qf1+ 39. Kg3 Qg1+ 40. Kh3 Qf1+ 41. Kg3 Qg1+ 42. Kh3 Qf1+ $11)) 34... Qe1+ (34... Rf8 $11) 35. Qxe1 $16 Rxe1+ {[%mdl 4096] Endgame KRB-KRB} 36. Kg2 Rd1 (36... d3 $16 37. Rd2 a4) 37. a4 $18 {Strongly threatening Rc1.} d3 {[#]} (37... Ra1 {keeps fighting.} 38. b3 Rb1) 38. Rd2 $1 Rxd2 (38... Rc1 39. Rxd3 Rc5) 39. Bxd2 Bxb2 {KB-KB} 40. Kf3 Bf6 41. h5 Bd4 42. Bxa5 Kg7 43. Bd2 Kf6 44. a5 {[%cal Ba4a5,Ba5a6][%mdl 32]} Kf5 45. a6 {White wants to mate with Be3.} Ke6 46. Be3 {White mates.} d2 47. Ke2 Bxe3 48. fxe3 {Weighted Error Value: White=0.12 (very precise) /Black=0.51} 1-0